lending/lending_fUSD_20250409
["ID","MTS","AMOUNT","RATE_DAILY","PERIOD"]
[357592241,1744212559163,-507.32667039,0.00019973,2]
[357592242,1744212559187,-3957.30509561,0.0002,2]
[357592304,1744212638290,-250.0,0.00019,2]
[357592305,1744212638300,-214.771189,0.000199,2]
[357592306,1744212638310,-201.73392926,0.00019973,2]
[357592307,1744212638320,-4873.01,0.0001999,2]
[357592308,1744212638329,-222.09,0.0001999,2]
[357592309,1744212638339,-222.09,0.0001999,2]
[357592310,1744212638349,-222.09,0.0001999,2]
[357592311,1744212638358,-222.09,0.0001999,2]
[357592312,1744212638368,-222.09,0.0001999,2]
[357592313,1744212638378,-222.09,0.0001999,2]
[357592314,1744212638387,-222.09,0.0001999,2]
[357592315,1744212638397,-222.09,0.0001999,2]
[357592316,1744212638407,-98.76488174,0.0002,2]
[357592318,1744212640761,-424.71909294,0.0002,2]
[357592319,1744212640773,-327.21497169,0.0002,2]
[357592320,1744212640784,-372.49349999,0.0002,2]
[357592356,1744212646390,-776.02862092,0.0002,2]
[357592361,1744212646911,-247.0658341,0.0002,2]
[357592362,1744212646923,-2728.89998616,0.0002,2]
[357592363,1744212646934,-1157.98838564,0.0002,2]
[357592364,1744212646977,-16691.564558,0.0002,2]
[357592368,1744212961065,-2000.0,0.0002,2]
[357592369,1744213015498,-217.0,0.00019999,2]
[357592370,1744213015522,-49783.0,0.0002,2]
[357592384,1744213629083,-316.29512909,0.000198,2]
[357592385,1744213629110,-150.0,0.00019899,2]
[357592386,1744213629134,-300.0,0.00019899,2]
[357592387,1744213629160,-191.61632583,0.000199,2]
[357592388,1744213641164,-1241.22273368,0.000199,2]
[357592389,1744213746094,-300.0,0.00019899,2]
[357592390,1744213746116,-105.32634049,0.000199,2]
[357592391,1744213746139,-776.12020551,0.000199,2]
[357592392,1744213769164,-22588.04679449,0.000199,2]
[357592393,1744213769188,-14496.6616,0.000199,2]
[357592394,1744213769209,-412.5068,0.000199,2]
[357592395,1744213769233,-811.6298,0.000199,2]
[357592396,1744213769254,-7954.46195497,0.000199,2]
[357592397,1744213769277,-540.88412893,0.00019973,2]
[357592398,1744213769299,-222.13,0.0001999,2]
[357592399,1744213769323,-11331.59092233,0.0002,2]
[357592429,1744213831629,-222.13,0.0001999,2]
[357592431,1744213831639,-68.93,0.00019999,2]
[357592434,1744213831652,-231.07,0.00019999,2]
[357592436,1744213831662,-7930.94704176,0.0002,2]
[357592443,1744213831803,-928.128,0.0002,2]
[357592444,1744213831815,-397.961608,0.0002,2]
[357592445,1744213831826,-336.609,0.0002,2]
[357592446,1744213831838,-300.0,0.0002,2]
[357592447,1744213831849,-106287.23500101,0.0002,2]
[357592448,1744213831863,-3525.62211806,0.0002,2]
[357592449,1744213831874,-17598.6,0.0002,2]
[357592472,1744213832182,-2193.95930416,0.0002,2]
[357592474,1744213832195,-294.84302077,0.0002,2]
[357592476,1744213832211,-2319.79584048,0.0002,2]
[357592478,1744213832222,-1574.39840479,0.0002,2]
[357592481,1744213832234,-2487.87541445,0.0002,2]
[357592483,1744213838026,-5487.41305588,0.0002,2]
[357592484,1744213838039,-705.72902975,0.0002,2]
[357592485,1744213838143,-137.91363686,0.0002,2]
[357592487,1744213839914,-39014.0475843,0.0002,2]
[357592488,1744213840148,-3098.9330142,0.0002,2]
[357592489,1744213840160,-947.66428876,0.0002,2]
[357592490,1744213840172,-414.29502675,0.0002,2]
[357592499,1744213843127,-150.99596981,0.0002,2]
[357592503,1744213844058,-1177.93251639,0.0002,2]
[357592552,1744213944440,4013.13806891,0.0003,60]
[357592553,1744214015617,250.0,0.0003,30]
[357592555,1744214347560,-185.22881038,0.0001985,2]
[357592559,1744214838111,-250.0,0.00019,2]
[357592560,1744214838132,-185.228811,0.0001975,2]
[357592561,1744214838153,-423.0966557,0.00019772,2]
[357592562,1744214838174,-2313.66666036,0.00019886,2]
[357592563,1744214838199,-300.0,0.00019899,2]
[357592564,1744214838223,-339.0004,0.000199,2]
[357592565,1744214838245,-1293.6604,0.000199,2]
[357592566,1744214838266,-217.99380183,0.000199,2]
[357592567,1744214838287,-313.85032408,0.000199,2]
[357592568,1744214838308,-166.59905002,0.00019973,2]
[357592569,1744214838335,-468.65185757,0.00019973,2]
[357592570,1744214838356,-160.74496356,0.00019973,2]
[357592571,1744214838377,-501.88090667,0.00019973,2]
[357592572,1744214838399,-2665.23988733,0.00019976,2]
[357592573,1744214838419,-5991.2489322,0.00019986,2]
[357592574,1744214838441,-8304.36082458,0.00019986,2]
[357592575,1744214843094,-155.31747599,0.00019986,2]
[357592576,1744214888967,3000.0,0.0003,120]
[357592577,1744214946091,-223.6807239,0.00019886,2]
[357592578,1744214946111,-223.6807239,0.00019888,2]
[357592579,1744214946133,-2192.89486536,0.000199,2]
[357592580,1744214946155,-1824.38123484,0.00019986,2]
[357592581,1744214949172,-3336.36863679,0.00019986,2]
[357592582,1744214949196,-54361.22348321,0.00019986,2]
[357592583,1744214969109,-500.0,0.00019973,2]
[357592584,1744214969136,-500.0,0.00019973,2]
[357592585,1744214969164,-53067.96014934,0.00019986,2]
[357592586,1744215000954,3000.0,0.00032,120]
[357592594,1744215031844,-598.20233049,0.00019986,2]
[357592595,1744215031856,-3777.71549535,0.00019986,2]
[357592596,1744215031921,-4086.11267,0.00019986,2]
[357592597,1744215031932,-2002.65164984,0.00019986,2]
[357592598,1744215032021,-4136.71448545,0.00019986,2]
[357592599,1744215032033,-1952.72595287,0.00019986,2]
[357592600,1744215032099,-2585.72572743,0.00019986,2]
[357592601,1744215032111,-3011.11772661,0.00019986,2]
[357592602,1744215032123,-2354.8,0.00019986,2]
[357592603,1744215032190,-1838.71549141,0.00019986,2]
[357592613,1744215040017,-1938.9289076,0.00019986,2]
[357592615,1744215040569,-2655.02483071,0.00019986,2]
[357592616,1744215040581,-2114.98333589,0.00019986,2]
[357592617,1744215040591,-151.0,0.00019988,2]
[357592618,1744215040601,-200.0,0.00019988,2]
[357592619,1744215040613,-77256.41008868,0.0002,2]
[357592620,1744215040624,-204.23528919,0.0002,2]
[357592621,1744215040634,-369.1109665,0.0002,2]
[357592622,1744215040643,-250.0,0.000209,2]
[357592623,1744215040654,-1581.75882386,0.00021,2]
[357592624,1744215040664,-300.0,0.00021,2]
[357592625,1744215040673,-166.54365213,0.0002105,2]
[357592626,1744215040683,-173.761438,0.00021357,2]
[357592627,1744215040694,-222.4738,0.00021357,2]
[357592628,1744215040704,-745.98,0.00021757,2]
[357592629,1744215040714,-999.99,0.00021757,2]
[357592630,1744215040723,-500.0,0.00021781,2]
[357592631,1744215040732,-250.0,0.00021875,2]
[357592632,1744215040742,-500.0,0.00021918,2]
[357592633,1744215040752,-250.0,0.00021985,2]
[357592634,1744215040761,-2313.66666029,0.00022588,2]
[357592635,1744215040771,-350.0,0.00023,2]
[357592636,1744215040780,-150.0,0.00023078,2]
[357592637,1744215040789,-169.55,0.00023147,2]
[357592638,1744215040800,-344.56,0.0002318,2]
[357592639,1744215040809,-224.14,0.0002331,2]
[357592640,1744215040821,-6996.61000023,0.00023368,2]
[357592641,1744215040832,-2189.34560517,0.00023368,2]
[357592642,1744215040848,-10645.3043946,0.00023368,2]
[357592643,1744215040857,-13814.61,0.00023371,2]
[357592644,1744215040867,-1000.0,0.00023635,2]
[357592645,1744215040877,-1493.62,0.00023761,2]
[357592646,1744215040887,-200.0,0.00023823,2]
[357592647,1744215040897,-389.42,0.00023919,2]
[357592648,1744215040907,-975.35598453,0.00024,2]
[357592649,1744215040916,-500.0,0.0002408,2]
[357592650,1744215040926,-169.55,0.00024433,2]
[357592651,1744215040935,-300.0,0.00024544,2]
[357592652,1744215040945,-323.61,0.0002475,2]
[357592653,1744215040954,-323.61,0.00024757,2]
[357592654,1744215040964,-323.61,0.00024763,2]
[357592655,1744215040974,-323.61,0.0002477,2]
[357592656,1744215040983,-323.61,0.00024776,2]
[357592657,1744215040993,-323.61,0.00024783,2]
[357592658,1744215041002,-323.61,0.00024789,2]
[357592659,1744215041012,-323.61,0.00024796,2]
[357592660,1744215041021,-323.61,0.00024803,2]
[357592661,1744215041031,-323.61,0.00024809,2]
[357592662,1744215041041,-323.61,0.00024816,2]
[357592663,1744215041050,-323.61,0.00024822,2]
[357592664,1744215041060,-323.61,0.00024829,2]
[357592665,1744215041070,-323.61,0.00024835,2]
[357592666,1744215041079,-323.61,0.00024842,2]
[357592667,1744215041088,-323.61,0.00024848,2]
[357592668,1744215041098,-323.61,0.00024855,2]
[357592669,1744215041107,-323.61,0.00024861,2]
[357592670,1744215041117,-323.61,0.00024868,2]
[357592671,1744215041127,-323.61,0.00024874,2]
[357592672,1744215041136,-400.0,0.00025,2]
[357592673,1744215041146,-250.0,0.00025088,2]
[357592674,1744215041155,-200.0,0.00025123,2]
[357592675,1744215041164,-250.0,0.00025144,2]
[357592676,1744215041174,-1852.42,0.00025235,2]
[357592677,1744215041183,-2313.66666029,0.00025289,2]
[357592678,1744215041192,-1324.02,0.00025351,2]
[357592679,1744215041202,-500.0,0.00025452,2]
[357592680,1744215041212,-746.79,0.00025707,2]
[357592681,1744215041221,-169.55,0.00025719,2]
[357592682,1744215041231,-2192.89486534,0.000259,8]
[357592683,1744215041240,-300.0,0.00025913,2]
[357592684,1744215041250,-163.821533,0.00026,7]
[357592685,1744215041259,-151.0,0.00026,7]
[357592686,1744215041269,-151.0,0.00026,7]
[357592687,1744215041278,-151.0,0.00026,7]
[357592688,1744215041287,-256.602275,0.00026,7]
[357592689,1744215041297,-1110.144839,0.00026,7]
[357592690,1744215041307,-1110.144839,0.00026,7]
[357592691,1744215041317,-14905.3689803,0.00026,3]
[357592692,1744215041327,-500.0,0.00026009,2]
[357592693,1744215041337,-164.45129542,0.00026009,2]
[357592694,1744215041346,-500.0,0.00026009,2]
[357592695,1744215041355,-500.0,0.00026009,2]
[357592696,1744215041366,-500.0,0.00026009,2]
[357592697,1744215041375,-500.0,0.00026009,2]
[357592698,1744215041384,-500.0,0.00026009,2]
[357592699,1744215041394,-500.0,0.00026009,2]
[357592700,1744215041403,-151.0,0.0002601,7]
[357592701,1744215041412,-151.0,0.0002601,7]
[357592702,1744215041422,-151.0,0.0002601,7]
[357592703,1744215041431,-742.308557,0.0002601,7]
[357592704,1744215041441,-742.308557,0.0002601,7]
[357592705,1744215041450,-151.0,0.0002601,7]
[357592706,1744215041460,-156.281988,0.0002601,7]
[357592707,1744215041470,-151.0,0.0002601,7]
[357592708,1744215041479,-151.0,0.0002601,7]
[357592709,1744215041489,-151.0,0.0002601,7]
[357592710,1744215041499,-151.0,0.0002601,7]
[357592711,1744215041508,-204.875908,0.0002601,7]
[357592712,1744215041518,-151.0,0.0002601,7]
[357592713,1744215041527,-204.875908,0.0002601,7]
[357592714,1744215041536,-151.0,0.0002601,7]
[357592715,1744215041546,-151.0,0.0002601,7]
[357592716,1744215041557,-151.0,0.0002601,7]
[357592717,1744215041567,-151.0,0.0002601,7]
[357592718,1744215041577,-151.0,0.0002601,7]
[357592719,1744215041586,-151.0,0.0002601,7]
[357592720,1744215041595,-151.0,0.0002601,7]
[357592721,1744215041606,-151.0,0.0002601,7]
[357592722,1744215041619,-151.0,0.0002601,7]
[357592723,1744215041628,-151.0,0.0002601,7]
[357592724,1744215041637,-151.967594,0.0002601,7]
[357592725,1744215041647,-153.434265,0.0002601,7]
[357592726,1744215041658,-151.0,0.0002601,7]
[357592727,1744215041667,-151.0,0.0002601,7]
[357592728,1744215041676,-205.23304,0.0002601,7]
[357592729,1744215041687,-205.23304,0.0002601,7]
[357592730,1744215041696,-151.0,0.0002601,7]
[357592731,1744215041706,-151.0,0.0002601,7]
[357592732,1744215041715,-151.0,0.0002601,7]
[357592733,1744215041724,-151.0,0.0002601,7]
[357592734,1744215041733,-180.164876,0.0002601,7]
[357592735,1744215041742,-151.0,0.0002601,7]
[357592736,1744215041752,-180.164876,0.0002601,7]
[357592737,1744215041761,-151.0,0.0002601,7]
[357592738,1744215041771,-208.134794,0.0002601,7]
[357592739,1744215041780,-151.0,0.0002601,7]
[357592740,1744215041790,-151.0,0.0002601,7]
[357592741,1744215041799,-151.0,0.0002601,7]
[357592742,1744215041808,-151.0,0.0002601,7]
[357592743,1744215041819,-151.0,0.0002601,7]
[357592744,1744215041829,-151.0,0.0002601,7]
[357592745,1744215041838,-157.394285,0.0002601,7]
[357592746,1744215041847,-23900.0,0.0002601,2]
[357592747,1744215041856,-262.67,0.00026017,2]
[357592748,1744215041865,-1493.62,0.00026025,2]
[357592749,1744215041875,-1371.28028199,0.00026048,2]
[357592750,1744215041884,-151.0,0.00026048,7]
[357592751,1744215041894,-151.0,0.00026048,7]
[357592752,1744215041903,-151.0,0.00026048,7]
[357592753,1744215041912,-1110.144839,0.00026048,7]
[357592754,1744215041921,-1110.144839,0.00026048,7]
[357592755,1744215041930,-300.0,0.0002606,2]
[357592756,1744215041939,-14905.3689803,0.00026138,3]
[357592757,1744215041949,-609.13,0.00026138,2]
[357592758,1744215041958,-8569.21,0.00026148,2]
[357592759,1744215041967,-151.0,0.00026148,7]
[357592760,1744215041977,-151.0,0.00026148,7]
[357592761,1744215041986,-151.0,0.00026148,7]
[357592762,1744215041996,-151.0,0.00026148,7]
[357592763,1744215042005,-151.0,0.00026148,7]
[357592764,1744215042014,-151.0,0.00026148,7]
[357592765,1744215042023,-151.0,0.00026148,7]
[357592766,1744215042032,-151.0,0.00026148,7]
[357592767,1744215042042,-156.091119,0.00026148,7]
[357592768,1744215042051,-377.749452,0.00026148,7]
[357592769,1744215042060,-377.749452,0.00026148,7]
[357592770,1744215042069,-151.0,0.00026148,7]
[357592771,1744215042078,-14905.3689803,0.0002615,3]
[357592772,1744215042087,-151.0,0.0002615,7]
[357592773,1744215042098,-151.0,0.0002615,7]
[357592774,1744215042107,-151.0,0.0002615,7]
[357592775,1744215042116,-151.0,0.0002615,7]
[357592776,1744215042125,-151.0,0.0002615,7]
[357592777,1744215042135,-204.875908,0.0002615,7]
[357592778,1744215042144,-204.875908,0.0002615,7]
[357592779,1744215042154,-151.0,0.0002615,7]
[357592780,1744215042164,-151.0,0.0002615,7]
[357592781,1744215042173,-153.089161,0.0002615,7]
[357592782,1744215042182,-151.0,0.0002615,7]
[357592783,1744215042191,-156.964163,0.0002615,7]
[357592784,1744215042202,-151.0,0.0002615,7]
[357592785,1744215042212,-157.668222,0.0002615,7]
[357592786,1744215042221,-151.0,0.0002615,7]
[357592787,1744215042230,-151.0,0.0002615,7]
[357592788,1744215042239,-151.0,0.0002615,7]
[357592789,1744215042248,-205.23304,0.0002615,7]
[357592790,1744215042258,-205.23304,0.0002615,7]
[357592791,1744215042267,-151.0,0.0002615,7]
[357592792,1744215042276,-151.0,0.0002615,7]
[357592793,1744215042285,-151.0,0.0002615,7]
[357592794,1744215042294,-180.164876,0.0002615,7]
[357592795,1744215042303,-151.0,0.0002615,7]
[357592796,1744215042313,-180.164876,0.0002615,7]
[357592797,1744215042322,-151.0,0.0002615,7]
[357592798,1744215042331,-153.671052,0.0002615,7]
[357592799,1744215042340,-151.0,0.0002615,7]
[357592800,1744215042349,-151.0,0.0002615,7]
[357592801,1744215042358,-151.0,0.0002615,7]
[357592802,1744215042368,-151.0,0.0002615,7]
[357592803,1744215042377,-151.0,0.0002615,7]
[357592804,1744215042387,-151.0,0.0002615,7]
[357592805,1744215042396,-151.0,0.0002615,7]
[357592806,1744215042405,-1110.144839,0.0002615,7]
[357592807,1744215042414,-24567.82,0.0002616,2]
[357592808,1744215042423,-215.807431,0.0002616,7]
[357592809,1744215042433,-151.0,0.0002616,7]
[357592810,1744215042442,-151.0,0.0002616,7]
[357592811,1744215042451,-742.308557,0.0002616,7]
[357592812,1744215042461,-742.308557,0.0002616,7]
[357592813,1744215042471,-151.0,0.0002616,7]
[357592814,1744215042480,-1745.6372,0.00026478,2]
[357592815,1744215042495,-151.0,0.00026478,7]
[357592816,1744215042504,-151.0,0.00026478,7]
[357592817,1744215042513,-180.164876,0.00026478,7]
[357592818,1744215042522,-180.164876,0.00026478,7]
[357592819,1744215042531,-151.0,0.00026478,7]
[357592820,1744215042540,-151.0,0.00026478,7]
[357592821,1744215042549,-151.0,0.00026479,7]
[357592822,1744215042559,-151.0,0.00026479,7]
[357592823,1744215042568,-151.0,0.00026479,7]
[357592824,1744215042578,-151.0,0.00026479,7]
[357592825,1744215042587,-151.0,0.00026479,7]
[357592826,1744215042597,-151.0,0.00026479,7]
[357592827,1744215042606,-1110.144839,0.00026479,7]
[357592828,1744215042618,-1000.0,0.00026589,2]
[357592829,1744215042627,-14905.3689803,0.00026659,3]
[357592830,1744215042636,-151.0,0.00026669,7]
[357592831,1744215042646,-151.0,0.00026669,7]
[357592832,1744215042655,-151.0,0.00026669,7]
[357592833,1744215042664,-270.655436,0.00026669,7]
[357592834,1744215042673,-151.0,0.00026669,7]
[357592835,1744215042682,-204.875908,0.00026669,7]
[357592836,1744215042691,-204.875908,0.00026669,7]
[357592837,1744215042700,-151.0,0.00026669,7]
[357592838,1744215042709,-151.0,0.00026669,7]
[357592839,1744215042718,-154.714453,0.00026669,7]
[357592840,1744215042727,-151.0,0.00026669,7]
[357592841,1744215042736,-151.0,0.00026669,7]
[357592842,1744215042745,-151.0,0.00026669,7]
[357592843,1744215042755,-205.23304,0.00026669,7]
[357592844,1744215042764,-205.23304,0.00026669,7]
[357592845,1744215042773,-151.0,0.00026679,7]
[357592846,1744215042782,-151.518957,0.00026679,7]
[357592847,1744215042791,-151.0,0.00026679,7]
[357592849,1744215042800,-151.0,0.00026679,7]
[357592852,1744215042810,-151.0,0.00026679,7]
[357592853,1744215042819,-151.157601,0.00026679,7]
[357592855,1744215042828,-151.157601,0.00026679,7]
[357592857,1744215042837,-239.72,0.00026679,5]
[357592858,1744215042846,-151.0,0.00026679,7]
[357592859,1744215042855,-151.0,0.00026679,7]
[357592861,1744215042865,-151.0,0.00026679,7]
[357592863,1744215042875,-151.0,0.00026679,7]
[357592865,1744215042884,-151.681447,0.00026679,7]
[357592867,1744215042893,-151.923317,0.00026679,7]
[357592869,1744215042903,-151.0,0.00026679,7]
[357592871,1744215042912,-151.0,0.00026679,7]
[357592872,1744215042922,-151.0,0.00026679,7]
[357592874,1744215042931,-848.635718,0.00026679,7]
[357592876,1744215042940,-848.635718,0.00026679,7]
[357592877,1744215042949,-151.0,0.00026679,7]
[357592878,1744215042959,-151.0,0.00026679,7]
[357592879,1744215042968,-151.0,0.00026679,7]
[357592880,1744215042976,-151.0,0.00026679,7]
[357592881,1744215042986,-273.410725,0.00026679,7]
[357592882,1744215042995,-151.0,0.00026679,7]
[357592883,1744215043006,-154.960357,0.00026679,7]
[357592884,1744215043015,-151.0,0.00026679,7]
[357592885,1744215043026,-151.0,0.00026679,7]
[357592886,1744215043036,-151.0,0.00026679,7]
[357592887,1744215043045,-158.774295,0.00026679,7]
[357592888,1744215043054,-151.0,0.00026679,7]
[357592889,1744215043063,-377.749452,0.00026679,7]
[357592890,1744215043072,-377.749452,0.00026679,7]
[357592891,1744215043081,-151.0,0.00026679,7]
[357592892,1744215043090,-3958.0,0.00026799,2]
[357592893,1744215043099,-151.0,0.00026799,2]
[357592894,1744215043108,-852.0,0.00026799,2]
[357592895,1744215043118,-1120.0,0.00026799,2]
[357592896,1744215043127,-229.22,0.00026849,2]
[357592897,1744215043136,-214.64,0.00026849,2]
[357592898,1744215043145,-260.49,0.00026849,2]
[357592899,1744215043154,-450.0,0.00027,2]
[357592900,1744215043163,-290.0,0.00027,2]
[357592901,1744215043173,-169.55,0.00027005,2]
[357592902,1744215043182,-500.0,0.00027097,2]
[357592903,1744215043192,-500.0,0.000271,2]
[357592904,1744215043201,-500.0,0.000271,2]
[357592905,1744215043210,-14905.3689803,0.00027387,3]
[357592906,1744215043221,-151.0,0.00027387,7]
[357592907,1744215043230,-151.0,0.00027387,7]
[357592908,1744215043240,-1110.144839,0.00027387,7]
[357592909,1744215043249,-151.0,0.00027397,7]
[357592910,1744215043259,-742.308557,0.00027397,7]
[357592911,1744215043268,-742.308557,0.00027397,7]
[357592912,1744215043277,-151.0,0.00027397,7]
[357592913,1744215043286,-151.0,0.00027397,7]
[357592914,1744215043296,-151.0,0.00027397,7]
[357592915,1744215043305,-180.164876,0.00027397,7]
[357592916,1744215043315,-180.164876,0.00027397,7]
[357592917,1744215043324,-151.0,0.00027397,7]
[357592918,1744215043333,-151.0,0.00027397,7]
[357592919,1744215043342,-151.0,0.00027397,7]
[357592920,1744215043352,-151.0,0.00027397,7]
[357592921,1744215043361,-151.0,0.00027397,7]
[357592922,1744215043372,-500.0,0.00027397,2]
[357592923,1744215043381,-500.0,0.00027397,2]
[357592924,1744215043390,-427.56811528,0.00027397,2]
[357592925,1744215043400,-500.0,0.00027397,2]
[357592926,1744215043409,-500.0,0.00027397,2]
[357592927,1744215043418,-1365.86,0.00027397,2]
[357592928,1744215043428,-151.0,0.00027397,7]
[357592929,1744215043437,-257.63141,0.00027397,7]
[357592930,1744215043446,-151.0,0.00027397,7]
[357592931,1744215043455,-151.0,0.00027397,7]
[357592932,1744215043465,-354.724621,0.00027397,7]
[357592933,1744215043474,-354.724621,0.00027397,7]
[357592934,1744215043484,-354.724621,0.00027397,7]
[357592935,1744215043493,-354.724621,0.00027397,7]
[357592936,1744215043502,-354.724621,0.00027397,7]
[357592937,1744215043511,-354.724621,0.00027397,7]
[357592938,1744215043521,-290.0,0.00027671,2]
[357592939,1744215043530,-500.0,0.00027681,5]
[357592940,1744215043539,-500.0,0.00027681,5]
[357592941,1744215043549,-151.0,0.00027826,7]
[357592942,1744215043558,-151.0,0.00027826,7]
[357592943,1744215043567,-205.142075,0.00027826,7]
[357592944,1744215043576,-205.142075,0.00027826,7]
[357592945,1744215043586,-151.0,0.00027826,7]
[357592946,1744215043595,-248.0111,0.00027826,7]
[357592947,1744215043605,-248.0111,0.00027826,7]
[357592948,1744215043617,-151.0,0.00027826,7]
[357592949,1744215043627,-151.0,0.00027826,7]
[357592951,1744215043636,-151.0,0.00027826,7]
[357592953,1744215043645,-151.0,0.00027826,7]
[357592955,1744215043655,-151.0,0.00027826,7]
[357592957,1744215043664,-153.517143,0.00027826,7]
[357592959,1744215043674,-151.0,0.00027826,7]
[357592961,1744215043683,-151.0,0.00027826,7]
[357592963,1744215043692,-151.0,0.00027826,7]
[357592965,1744215043703,-190.818432,0.00027836,7]
[357592967,1744215043713,-151.0,0.00027836,7]
[357592968,1744215043722,-151.0,0.00027836,7]
[357592969,1744215043732,-159.768129,0.00027836,7]
[357592970,1744215043741,-14905.3689803,0.00027846,3]
[357592971,1744215043750,-151.0,0.00027846,7]
[357592972,1744215043759,-151.0,0.00027846,7]
[357592973,1744215043768,-151.0,0.00027846,7]
[357592974,1744215043778,-151.0,0.00027846,7]
[357592975,1744215043787,-204.875908,0.00027846,7]
[357592976,1744215043797,-204.875908,0.00027846,7]
[357592977,1744215043806,-151.0,0.00027846,7]
[357592978,1744215043815,-151.0,0.00027846,7]
[357592979,1744215043825,-151.0,0.00027846,7]
[357592980,1744215043835,-151.0,0.00027846,7]
[357592981,1744215043844,-151.0,0.00027846,7]
[357592982,1744215043853,-354.724621,0.00027846,7]
[357592983,1744215043862,-205.23304,0.00027846,7]
[357592984,1744215043872,-354.724621,0.00027846,7]
[357592985,1744215043881,-205.23304,0.00027846,7]
[357592986,1744215043890,-151.0,0.00027846,7]
[357592987,1744215043899,-155.275424,0.00027846,7]
[357592988,1744215043908,-1110.144839,0.00027846,7]
[357592989,1744215043917,-151.0,0.00027856,7]
[357592990,1744215043927,-205.142075,0.00027856,7]
[357592991,1744215043936,-205.142075,0.00027856,7]
[357592992,1744215043945,-161.753088,0.00027856,7]
[357592993,1744215043954,-151.0,0.00027856,7]
[357592994,1744215043963,-248.0111,0.00027856,7]
[357592995,1744215043971,-248.0111,0.00027856,7]
[357592996,1744215043980,-151.0,0.00027856,7]
[357592997,1744215043990,-151.0,0.00027856,7]
[357592998,1744215043999,-188.491116,0.00027856,7]
[357592999,1744215044008,-151.0,0.00027856,7]
[357593000,1744215044017,-151.0,0.00027856,7]
[357593001,1744215044026,-151.0,0.00027856,7]
[357593002,1744215044035,-151.0,0.00027856,7]
[357593003,1744215044044,-151.0,0.00027856,7]
[357593004,1744215044053,-151.0,0.00027856,7]
[357593005,1744215044062,-151.0,0.00027856,7]
[357593006,1744215044072,-151.0,0.00027856,7]
[357593007,1744215044081,-151.0,0.00027856,7]
[357593008,1744215044091,-151.0,0.00027856,7]
[357593009,1744215044100,-151.157601,0.00027856,7]
[357593010,1744215044109,-151.157601,0.00027856,7]
[357593011,1744215044118,-151.0,0.00027856,7]
[357593012,1744215044127,-151.0,0.00027856,7]
[357593013,1744215044325,-151.0,0.00027856,7]
[357593014,1744215044335,-151.0,0.00027856,7]
[357593015,1744215044345,-240.681549,0.00027856,7]
[357593016,1744215044354,-848.635718,0.00027856,7]
[357593017,1744215044364,-848.635718,0.00027856,7]
[357593018,1744215044374,-151.0,0.00027856,7]
[357593019,1744215044384,-206.54414,0.00027856,7]
[357593020,1744215044394,-151.0,0.00027856,7]
[357593021,1744215044403,-292.792633,0.00027856,7]
[357593022,1744215044413,-151.0,0.00027856,7]
[357593023,1744215044422,-151.0,0.00027856,7]
[357593024,1744215044432,-151.0,0.00027856,7]
[357593025,1744215044441,-377.749452,0.00027856,7]
[357593026,1744215044451,-377.749452,0.00027856,7]
[357593027,1744215044460,-151.0,0.00027856,7]